{"text_format":"1","workbook":"xlsx","n_sheets":1,"sheets":["Form_44"],"not_rendered":{"charts":0,"images":2,"macros":1,"external_links":2,"defined_names":13,"comments":1,"pivot_tables":0},"unopened":[],"bounds":{"document_bytes":16777216,"sheet_cells":100000,"rows_first":2000,"rows_last":500,"rows_between":2000,"halvings":0,"cell_chars":16384,"cell_head_chars":4096},"cells_cut":0,"cells_raw":0,"read":"whole","date_system":"1900"}

{"sheet":"Form_44","index":0,"n_rows":34,"n_cols":31,"rows_kept":34,"cut":false,"hidden":false,"merged":[[33,0,34,1],[33,2,34,6],[33,13,34,16],[33,17,34,19],[5,0,5,19],[6,0,6,19],[27,2,27,19],[30,1,30,19],[31,1,31,19],[7,18,10,18],[7,19,10,19],[7,3,7,13],[25,0,25,17],[28,1,28,19],[7,0,10,0],[7,14,10,14],[1,18,1,19],[2,0,2,19],[3,0,3,19],[1,0,1,16],[4,0,4,19],[7,15,10,15],[7,16,10,16],[7,17,10,17],[7,1,10,1],[32,1,32,19]]}
[]
["jktLFkku ljdkj\nçkfof/kd f'k{kk e.My] jktLFkku] tks/kiqj \nijh{kk l= 2022&23 ¼ukWu&bath-] lsesLVj uoEcj] 2022½",null,null,null,null,null,null,null,null,null,null,null,null,null,null,null,null,null,"ikfjJfed foi=&44",null,null,null,null,null,null,0,null,null,null,0,11]
["ijh{kk dsUnz @laLFkku dk uke ,oa iwjk irk--------------------------------------------------------------------------------------------------------------------------------------------------- ijh{kk dsUnz dksM----------------------------------------------------------------------------------------------",null,null,null,null,null,null,null,null,null,null,null,null,null,null,null,null,null,null,null,null,null,null,null,null,1,null,null,null,1,12]
["ijh{kk dsUnz@laLFkku ds cSad dk uke ------------------------------------------------------------------------  [kkrk la[;k ----------------------laLFkku dk isu uEcj---------------------------------- vkbZ,Q,llh dksM----------------------------------------",null,null,null,null,null,null,null,null,null,null,null,null,null,null,null,null,null,null,null,null,null,null,null,null,2,null,null,null,2,13]
[null,null,null,null,null,null,null,null,null,null,null,null,null,null,null,null,null,null,null,null,null,null,null,null,null,null,null,null,null,null,14]
["¼1½ dkWye dksM es ijh{kk dsUnz v/kh{kd gsrq 11] vfrfjDr ijh{kk dsUnzz  v/kh{kd gsrq 12] ijh{kk oh{kd gsrq 13] Eak=kyf;d gsrq 14 ,oa prqFkZ Js.kh deZpkjh gsrq 15 vafdr djsaA",null,null,null,null,null,null,null,null,null,null,null,null,null,null,null,null,null,null,null,null,null,null,null,null,null,null,null,null,null,15]
["¼2½ fnukad @ikjh okys dkWye esa mifLFkfr fnol @ ikjh ds fnu 1 vafdr djsa vuqifLFfr ij 0 vafdr djsaA dqy jkf'k okys dkWye  esa x.kuk Lor% gh gksxhA vr% bl dkWye esa dqN vafdr ugha djsA"]
["SN.","Officer/Employee Name in Capital Letters with Designation\n",null,"Exam Date",null,null,null,null,null,null,null,null,null,null,"EXTRA-BEFORE","EXTRA-AFTER","TOTAL SESSIONS","RATE","TOTAL AMOUNT","SIGNATURE"]
[null,null,null,"2023-02-01","2023-02-02","2023-02-03","2023-02-04","2023-02-06","2023-02-07","2023-02-08","2023-02-09","2023-02-10","2023-02-11","2023-02-13"]
[null,null,"STUDENT STRENGTH"]
[null,null,"CODE"]
[{"$f":"IF(B12=\"\",\"\",1)","v":""},null,null,0,null,null,null,null,null,null,null,null,null,0,null,null,{"$f":"SUM(D12:P12)","v":0},null,{"$f":"IF(C12=\"\",0,IF(B12=\"\",0,IF(C12=11,Q12*100,IF(C12=12,Q12*75,IF(C12=13,ROUND(Q12*70,0),IF(C12=14,Q12*40,IF(C12=15,Q12*30)))))))","v":0}]
[{"$f":"IF(B13=\"\",\"\",#REF!+1)","v":""},null,null,null,null,null,null,null,null,null,null,null,null,null,null,null,{"$f":"SUM(D13:P13)","v":0},null,{"$f":"IF(C13=\"\",0,IF(B13=\"\",0,IF(C13=11,Q13*100,IF(C13=12,Q13*75,IF(C13=13,ROUND(Q13*70,0),IF(C13=14,Q13*40,IF(C13=15,Q13*30)))))))","v":0}]
[{"$f":"IF(B14=\"\",\"\",#REF!+1)","v":""},null,null,null,null,null,null,null,null,null,null,null,null,null,null,null,0,null,0]
[{"$f":"IF(B15=\"\",\"\",A14+1)","v":""},null,null,null,null,null,null,null,null,null,null,null,null,null,null,null,{"$f":"SUM(D15:P15)","v":0},null,0]
["",null,null,null,null,null,null,null,null,null,null,null,null,null,null,null,{"$f":"SUM(D16:P16)","v":0},null,0]
["",null,null,null,null,null,null,null,null,null,null,null,null,null,null,null,0,null,0]
["",null,null,null,null,null,null,null,null,null,null,null,null,null,null,null,0,null,0]
[null,null,null,null,null,null,null,null,null,null,null,null,null,null,null,null,0,null,0]
[null,null,null,null,null,null,null,null,null,null,null,null,null,null,null,null,0,null,0]
[null,null,null,null,null,null,null,null,null,null,null,null,null,null,null,null,0,null,0]
[null,null,null,null,null,null,null,null,null,null,null,null,null,null,null,null,0,null,0]
[null,null,null,null,null,null,null,null,null,null,null,null,null,null,null,null,0,null,0]
[null,null,null,null,null,null,null,null,null,null,null,null,null,null,null,null,0,null,0]
[null,null,null,null,null,null,null,null,null,null,null,null,null,null,null,null,0,null,0]
["Grand Total",null,null,null,null,null,null,null,null,null,null,null,null,null,null,null,null,null,{"$f":"SUM(S12:S25)","v":0}]
[null,"dqy :Ik;s vadks esa",{"$f":"+S26","v":0}]
[null,"dqy :Ik;s 'kCnksa esa ",{"$f":"IF(S26>0, SUBSTITUTE(spellnumber(S26),\"Dollars and No Cents\",\"only\"),\"Rupees ….Nil ….\")","v":"Rupees ….Nil …."}]
[null,"No.                                         e.My dk;kZy; ç;ksxkFkZ\nfnukad                                          çekf.kr ,oa ikfjr \n\n"]
["izek.k i=%&"]
[1,"izekf.kr fd;k tkrk gS fd izkfof/kd f'k{kk e.My] jktFkku] tks/kiqj ijh{kk ckcr~ le;&le; ij izlkfjr funsZ'k ;Fkk ijh{kk v/kh{kd funsZ'k iqfLrwdk dh ikyuk djrs gq, fu/kkZfjr ekin.M vuqlkj dkfeZdksa dh lsok,as izkIr djrs gq, ikfjJfed nkok funsZ'kkuqlkj vko';d foi=ksa dks layXu djrs gq, izLrqr fd;k x;k gSA"]
[2,"Hkqxrku gsrq ;g fcy izFke ckj izLrqr x;k gSA"]
[3,"Hkqxrku forj.k I'pkr izkfIr jlhn e.My dks fHktok nh tk;sxhA"]
["izHkkjh vf/kdkjh",null,"izHkkjh",null,null,null,null,null,null,null,null,null,null,null,null,null,null,"iz/kkukpk;Z gLrk{kj e; lhy"]